fUSD/lending_fUSD_20240104
["ID","MTS","AMOUNT","RATE_DAILY","PERIOD"]
[310207799,1704400303206,-500.0,0.00036164,2]
[310207800,1704400303215,-500.0,0.00036164,2]
[310207801,1704400303227,-815.95,0.00036164,2]
[310207802,1704400303237,-1043.97,0.00036164,2]
[310207803,1704400303246,-4226.54,0.00036164,2]
[310207804,1704400303255,-579.28,0.00036164,2]
[310207805,1704400303265,-500.0,0.00036164,2]
[310207806,1704400303275,-500.0,0.00036164,2]
[310207807,1704400303284,-500.0,0.00036164,2]
[310207808,1704400303293,-500.93,0.00036164,2]
[310207809,1704400303303,-1545.25,0.00036164,2]
[310207810,1704400303313,-896.7,0.00036164,2]
[310207811,1704400303323,-500.0,0.00036164,2]
[310207812,1704400303334,-500.0,0.00036164,2]
[310207813,1704400303343,-1118.72,0.00036164,2]
[310207814,1704400303353,-766.02,0.00036164,2]
[310207815,1704400303362,-525.53,0.00036164,2]
[310207816,1704400303373,-1839.95,0.00036164,2]
[310207817,1704400303382,-1961.18,0.00036164,2]
[310207818,1704400303393,-666.57,0.00036164,2]
[310207819,1704400303404,-650.88,0.00036164,2]
[310207820,1704400303413,-1047.53,0.00036164,2]
[310207821,1704400303422,-2743.39,0.00036164,2]
[310207822,1704400303432,-6488.11,0.00036164,2]
[310207823,1704400303441,-220.71423699,0.00036164,14]
[310207824,1704400303451,-1207.75,0.00036164,2]
[310207825,1704400303460,-802.32,0.00036164,2]
[310207826,1704400303470,-500.0,0.00036164,2]
[310207827,1704400303479,-2300.26,0.00036164,2]
[310207828,1704400303490,-500.0,0.00036164,2]
[310207829,1704400303500,-564.62,0.00036164,2]
[310207830,1704400303509,-2212.73,0.00036164,2]
[310207831,1704400303518,-500.0,0.00036164,2]
[310207832,1704400303529,-8818.63,0.00036164,2]
[310207833,1704400303550,-554.47,0.00036164,2]
[310207834,1704400303561,-500.0,0.00036164,2]
[310207835,1704400303571,-1988.3,0.00036164,2]
[310207836,1704400303581,-500.0,0.00036164,2]
[310207837,1704400303590,-1033.94,0.00036164,2]
[310207838,1704400303599,-8023.99,0.00036164,2]
[310207839,1704400303609,-2729.72,0.00036164,2]
[310207840,1704400303618,-1421.2,0.00036164,2]
[310207841,1704400303628,-2075.81,0.00036164,2]
[310207842,1704400303638,-2507.15,0.00036164,2]
[310207843,1704400303647,-500.0,0.00036164,2]
[310207844,1704400303657,-500.0,0.00036164,2]
[310207845,1704400303668,-1492.24,0.00036164,2]
[310207846,1704400303678,-500.0,0.00036164,2]
[310207847,1704400303688,-500.0,0.00036164,2]
[310207848,1704400303699,-5784.19,0.00036164,2]
[310207849,1704400303708,-1148.25,0.00036164,2]
[310207850,1704400303720,-500.0,0.00036164,2]
[310207851,1704400303729,-512.73,0.00036164,2]
[310207852,1704400303739,-500.08,0.00036164,2]
[310207853,1704400303749,-714.23,0.00036164,2]
[310207854,1704400303759,-500.0,0.00036164,2]
[310207855,1704400303769,-500.0,0.00036164,2]
[310207856,1704400303778,-582.44,0.00036164,2]
[310207857,1704400303789,-500.0,0.00036164,2]
[310207858,1704400303799,-500.0,0.00036164,2]
[310207859,1704400303809,-565.27,0.00036164,2]
[310207860,1704400303818,-799.36,0.00036164,2]
[310207861,1704400303828,-586.88199251,0.00036164,2]
[310207862,1704400303838,-500.0,0.00036164,2]
[310207863,1704400303847,-500.0,0.00036164,2]
[310207864,1704400303856,-1291.64,0.00036164,2]
[310207865,1704400303868,-1533.04,0.00036164,2]
[310207866,1704400303877,-654.95,0.00036164,2]
[310207867,1704400303887,-1046.38,0.00036164,2]
[310207868,1704400303898,-1168.15,0.00036164,2]
[310207869,1704400303907,-1279.36,0.00036164,2]
[310207870,1704400303918,-774.31,0.00036164,2]
[310207871,1704400303928,-1178.66,0.00036164,2]
[310207872,1704400303937,-2705.72,0.00036164,2]
[310207873,1704400303947,-408.99290706,0.00036164,2]
[310207874,1704400303958,-540.01,0.00036164,2]
[310207875,1704400303970,-175.6,0.00036164,2]
[310207876,1704400303979,-800.68,0.00036164,2]
[310207877,1704400303988,-683.02,0.00036164,2]
[310207878,1704400303998,-1033.15,0.00036164,2]
[310207879,1704400304007,-500.0,0.00036164,2]
[310207880,1704400304017,-664.5,0.00036164,2]
[310207881,1704400304028,-5429.5,0.00036164,2]
[310207882,1704400304037,-787.99,0.00036164,2]
[310207883,1704400304047,-500.0,0.00036164,2]
[310207884,1704400304057,-1185.9,0.00036164,2]
[310207885,1704400304067,-500.0,0.00036164,2]
[310207886,1704400304077,-502.99,0.00036164,2]
[310207887,1704400304088,-803.67,0.00036164,2]
[310207888,1704400304097,-703.08,0.00036164,2]
[310207889,1704400304107,-931.91,0.00036164,2]
[310207890,1704400304116,-500.0,0.00036164,2]
[310207891,1704400304126,-500.0,0.00036164,2]
[310207892,1704400304135,-3045.47,0.00036164,2]
[310207893,1704400304145,-500.0,0.00036164,2]
[310207894,1704400304154,-924.28,0.00036164,2]
[310207895,1704400304164,-612.45,0.00036164,2]
[310207896,1704400304173,-500.0,0.00036164,2]
[310207897,1704400304183,-1664.58,0.00036164,2]
[310207898,1704400304193,-1719.17,0.00036164,2]
[310207899,1704400304202,-500.0,0.00036164,2]
[310207900,1704400304212,-650.67,0.00036164,2]
[310207901,1704400304222,-837.7,0.00036164,2]
[310207902,1704400304234,-651.85,0.00036164,2]
[310207903,1704400304243,-1763.88,0.00036164,2]
[310207904,1704400304253,-500.0,0.00036164,2]
[310207905,1704400304262,-500.0,0.00036164,2]
[310207906,1704400304272,-5455.26,0.00036164,2]
[310207907,1704400304281,-595.32,0.00036164,2]
[310207908,1704400304290,-500.0,0.00036164,2]
[310207909,1704400304299,-864.85,0.00036164,2]
[310207910,1704400304309,-500.0,0.00036164,2]
[310207911,1704400304319,-500.0,0.00036164,2]
[310207912,1704400304329,-618.44,0.00036164,2]
[310207913,1704400304338,-1928.75,0.00036164,2]
[310207914,1704400304348,-500.0,0.00036164,2]
[310207915,1704400304358,-500.0,0.00036164,2]
[310207916,1704400304367,-575.7,0.00036164,2]
[310207917,1704400304377,-589.02,0.00036164,2]
[310207918,1704400304387,-2873.21,0.00036164,2]
[310207919,1704400304398,-500.0,0.00036164,2]
[310207920,1704400304408,-500.0,0.00036164,2]
[310207921,1704400304417,-501.82,0.00036164,2]
[310207922,1704400304427,-500.0,0.00036164,2]
[310207923,1704400304437,-500.000001,0.00036164,2]
[310207924,1704400304446,-500.0,0.00036164,2]
[310207925,1704400304455,-1565.07,0.00036164,2]
[310207926,1704400304464,-1472.89,0.00036164,2]
[310207927,1704400304474,-500.0,0.00036164,2]
[310207928,1704400304483,-902.0,0.00036164,2]
[310207929,1704400304493,-6496.65,0.00036164,2]
[310207930,1704400304502,-500.0,0.00036164,2]
[310207931,1704400304512,-864.86,0.00036164,2]
[310207932,1704400304522,-500.0,0.00036164,2]
[310207933,1704400304532,-500.0,0.00036164,2]
[310207934,1704400304541,-542.64,0.00036164,2]
[310207935,1704400304550,-500.0,0.00036164,2]
[310207936,1704400304559,-659.36,0.00036164,2]
[310207937,1704400304568,-539.42,0.00036164,2]
[310207938,1704400304578,-2834.51,0.00036164,2]
[310207939,1704400304587,-500.0,0.00036164,2]
[310207940,1704400304596,-535.67,0.00036164,2]
[310207941,1704400304606,-500.0,0.00036164,2]
[310207942,1704400304615,-772.31,0.00036164,2]
[310207943,1704400304624,-730.25,0.00036164,2]
[310207944,1704400304634,-500.0,0.00036164,2]
[310207945,1704400304643,-1511.83,0.00036164,2]
[310207946,1704400304653,-500.0,0.00036164,2]
[310207947,1704400304663,-597.99,0.00036164,2]
[310207948,1704400304672,-1373.46,0.00036164,2]
[310207949,1704400304681,-500.0,0.00036164,2]
[310207950,1704400304691,-325.56229217,0.00036164,2]
[310207951,1704400304701,-500.0,0.00036164,2]
[310207952,1704400304711,-1411.58,0.00036164,2]
[310207953,1704400304721,-844.92,0.00036164,2]
[310207954,1704400304730,-1122.72,0.00036164,2]
[310207955,1704400304740,-500.0,0.00036164,2]
[310207956,1704400304750,-938.79,0.00036164,2]
[310207957,1704400304759,-700.27,0.00036164,2]
[310207958,1704400304768,-500.0,0.00036164,2]
[310207959,1704400304777,-2603.65,0.00036164,2]
[310207960,1704400304787,-500.0,0.00036164,2]
[310207961,1704400304797,-500.0,0.00036164,2]
[310207962,1704400304807,-690.56,0.00036164,2]
[310207963,1704400304817,-500.0,0.00036164,2]
[310207964,1704400304827,-500.0,0.00036164,2]
[310207965,1704400304837,-1114.57,0.00036164,2]
[310207966,1704400304847,-1863.03,0.00036164,2]
[310207967,1704400304857,-625.26,0.00036164,2]
[310207968,1704400304868,-1822.1,0.00036164,2]
[310207969,1704400304878,-515.1,0.00036164,2]
[310207970,1704400304888,-524.64,0.00036164,2]
[310207971,1704400304899,-715.91,0.00036164,2]
[310207972,1704400304908,-1359.04,0.00036164,2]
[310207973,1704400304918,-151.0,0.00036164,7]
[310207974,1704400304928,-151.0,0.00036164,7]
[310207975,1704400304938,-325.61963289,0.00036172,14]
[310207976,1704400304948,-6528.34,0.000362,7]
[310207977,1704400304957,-1474.70996629,0.000362,9]
[310207978,1704400304968,-151.76501899,0.00036204,14]
[310207979,1704400304977,-157.03,0.00036207,2]
[310207980,1704400304986,-159.57499855,0.00036216,14]
[310207981,1704400304998,-461.70442508,0.0003622,2]
[310207982,1704400305008,-220.71423699,0.00036227,14]
[310207983,1704400305018,-152.79793013,0.00036265,14]
[310207984,1704400305028,-325.61963289,0.00036288,14]
[310207985,1704400305038,-137255.64,0.000363,2]
[310207986,1704400305047,-25000.0,0.000363,2]
[310207987,1704400305057,-220.71423699,0.00036302,14]
[310207988,1704400305068,-220.71423699,0.00036303,14]
[310207989,1704400305078,-412.93661815,0.00036311,7]
[310207990,1704400305088,-756.29,0.00036311,2]
[310207991,1704400305098,-151.0,0.00036332,7]
[310207992,1704400305107,-317.32,0.00036333,2]
[310207993,1704400305117,-220.71423699,0.00036382,14]
[310207994,1704400305126,-325.61963289,0.00036389,14]
[310207995,1704400305136,-150.0,0.000364,25]
[310207996,1704400305146,-1000.0,0.000364,2]
[310207997,1704400305155,-151.3449159,0.00036433,14]
[310207998,1704400305165,-150.0,0.00036437,2]
[310207999,1704400305176,-500.0,0.00036438,2]
[310208000,1704400305188,-500.0,0.00036438,2]
[310208001,1704400305198,-500.0,0.00036438,2]
[310208002,1704400305208,-500.0,0.00036438,2]
[310208003,1704400305218,-809.33,0.00036438,2]
[310208004,1704400305253,-500.0,0.00036438,2]
[310208005,1704400305263,-500.0,0.00036438,2]
[310208006,1704400305274,-500.0,0.00036438,2]
[310208007,1704400305483,-500.0,0.00036438,2]
[310208008,1704400305493,-570.2,0.00036438,2]
[310208009,1704400305504,-500.0,0.00036438,2]
[310208010,1704400305515,-500.0,0.00036438,2]
[310208011,1704400305526,-500.0,0.00036438,2]
[310208012,1704400305536,-500.0,0.00036438,2]
[310208013,1704400305545,-500.0,0.00036438,2]
[310208014,1704400305555,-511.41,0.00036438,2]
[310208015,1704400305565,-500.0,0.00036438,2]
[310208016,1704400305576,-500.0,0.00036438,2]
[310208017,1704400305586,-826.26,0.00036438,2]
[310208018,1704400305598,-500.0,0.00036438,2]
[310208019,1704400305611,-1785.82,0.00036438,2]
[310208020,1704400305623,-541.66,0.00036438,2]
[310208021,1704400305633,-702.0,0.00036438,2]
[310208022,1704400305643,-500.0,0.00036438,2]
[310208023,1704400305653,-713.92,0.00036438,2]
[310208024,1704400305663,-508.08,0.00036438,2]
[310208025,1704400305675,-500.0,0.00036438,2]
[310208026,1704400305687,-500.0,0.00036438,2]
[310208027,1704400305700,-605.7,0.00036438,2]
[310208028,1704400305710,-500.0,0.00036438,2]
[310208029,1704400305718,-617.34,0.00036438,2]
[310208030,1704400305729,-1053.81,0.00036438,2]
[310208031,1704400305738,-500.0,0.00036438,2]
[310208032,1704400305747,-500.0,0.00036438,2]
[310208033,1704400305757,-500.0,0.00036438,2]
[310208034,1704400305767,-500.0,0.00036438,2]
[310208035,1704400305776,-500.0,0.00036438,2]
[310208036,1704400305785,-637.91,0.00036438,2]
[310208037,1704400305794,-642.96,0.00036438,2]
[310208038,1704400305804,-500.0,0.00036438,2]
[310208039,1704400305813,-500.0,0.00036438,2]
[310208040,1704400305822,-500.0,0.00036438,2]
[310208041,1704400305831,-500.0,0.00036438,2]
[310208042,1704400305841,-500.0,0.00036438,2]
[310208043,1704400305850,-500.0,0.00036438,2]
[310208044,1704400305859,-500.0,0.00036438,2]
[310208045,1704400305869,-500.0,0.00036438,2]
[310208046,1704400305878,-500.0,0.00036438,2]
[310208047,1704400305889,-500.0,0.00036438,2]
[310208048,1704400305898,-500.0,0.00036438,2]
[310208049,1704400305907,-583.92,0.00036438,2]
[310208050,1704400305917,-500.0,0.00036438,2]
[310208051,1704400305926,-500.0,0.00036438,2]
[310208052,1704400305936,-644.12,0.00036438,2]
[310208053,1704400305945,-1262.62,0.00036438,2]
[310208054,1704400305955,-500.0,0.00036438,2]
[310208055,1704400305964,-500.0,0.00036438,2]
[310208056,1704400305975,-501.37,0.00036438,2]
[310208057,1704400305984,-500.0,0.00036438,2]
[310208058,1704400305994,-500.0,0.00036438,2]
[310208059,1704400306003,-511.59,0.00036438,2]
[310208060,1704400306012,-500.0,0.00036438,2]
[310208061,1704400306022,-500.0,0.00036438,2]
[310208062,1704400306031,-500.0,0.00036438,2]
[310208063,1704400306041,-500.0,0.00036438,2]
[310208064,1704400306050,-500.0,0.00036438,2]
[310208065,1704400306059,-500.0,0.00036438,2]
[310208066,1704400306068,-500.0,0.00036438,2]
[310208067,1704400306078,-159.65,0.00036438,2]
[310208068,1704400306088,-500.0,0.00036438,2]
[310208069,1704400306098,-500.0,0.00036438,2]
[310208070,1704400306107,-984.97,0.00036438,2]
[310208071,1704400306117,-500.0,0.00036438,2]
[310208072,1704400306126,-500.0,0.00036438,2]
[310208073,1704400306135,-500.0,0.00036438,2]
[310208074,1704400306145,-500.0,0.00036438,2]
[310208075,1704400306153,-500.0,0.00036438,2]
[310208076,1704400306163,-2813.94,0.00036438,2]
[310208077,1704400306172,-500.0,0.00036438,2]
[310208078,1704400306181,-500.0,0.00036438,2]
[310208079,1704400306190,-815.95,0.00036438,2]
[310208080,1704400306200,-1043.97,0.00036438,2]
[310208081,1704400306209,-4226.54,0.00036438,2]
[310208082,1704400306218,-579.28,0.00036438,2]
[310208083,1704400306229,-419.13071788,0.00036438,2]
[310208084,1704400306243,-500.0,0.00036438,2]
[310208085,1704400306254,-500.93,0.00036438,2]
[310208086,1704400306266,-1545.25,0.00036438,2]
[310208087,1704400306276,-896.7,0.00036438,2]
[310208088,1704400306286,-500.0,0.00036438,2]
[310208089,1704400306297,-1118.72,0.00036438,2]
[310208090,1704400306308,-766.02,0.00036438,2]
[310208091,1704400306318,-525.53,0.00036438,2]
[310208092,1704400306329,-1839.95,0.00036438,2]
[310208093,1704400306340,-1961.18,0.00036438,2]
[310208094,1704400306350,-666.57,0.00036438,2]
[310208095,1704400306361,-650.88,0.00036438,2]
[310208096,1704400306371,-1047.53,0.00036438,2]
[310208097,1704400306380,-2743.39,0.00036438,2]
[310208098,1704400306391,-6488.11,0.00036438,2]
[310208099,1704400306405,-1207.75,0.00036438,2]
[310208100,1704400306416,-802.32,0.00036438,2]
[310208101,1704400306427,-500.0,0.00036438,2]
[310208102,1704400306436,-2300.26,0.00036438,2]
[310208103,1704400306446,-544.85542686,0.00036438,2]
[310208104,1704400306457,-564.62,0.00036438,2]
[310208105,1704400306467,-2212.73,0.00036438,2]
[310208106,1704400306477,-500.0,0.00036438,2]
[310208107,1704400306487,-8818.63,0.00036438,2]
[310208108,1704400306498,-554.47,0.00036438,2]
[310208109,1704400306508,-500.0,0.00036438,2]
[310208110,1704400306520,-1988.3,0.00036438,2]
[310208111,1704400306530,-1033.94,0.00036438,2]
[310208112,1704400306541,-500.0,0.00036438,2]
[310208113,1704400306554,-8023.99,0.00036438,2]
[310208114,1704400306567,-2729.72,0.00036438,2]
[310208115,1704400306577,-1421.2,0.00036438,2]
[310208116,1704400306589,-2075.81,0.00036438,2]
[310208117,1704400306600,-2507.15,0.00036438,2]
[310208118,1704400306610,-500.0,0.00036438,2]
[310208119,1704400306621,-500.0,0.00036438,2]
[310208120,1704400306631,-1492.24,0.00036438,2]
[310208121,1704400306641,-500.0,0.00036438,2]
[310208122,1704400306652,-500.0,0.00036438,2]
[310208123,1704400306664,-5784.19,0.00036438,2]
[310208124,1704400306675,-1148.25,0.00036438,2]
[310208125,1704400306688,-222.14556446,0.00036438,2]
[310208126,1704400306699,-512.73,0.00036438,2]
[310208127,1704400306709,-500.08,0.00036438,2]
[310208128,1704400306719,-714.23,0.00036438,2]
[310208129,1704400306730,-500.0,0.00036438,2]
[310208130,1704400306740,-500.0,0.00036438,2]
[310208131,1704400306750,-582.44,0.00036438,2]
[310208132,1704400306762,-500.0,0.00036438,2]
[310208133,1704400306772,-500.0,0.00036438,2]
[310208134,1704400306784,-565.27,0.00036438,2]
[310208135,1704400306794,-799.36,0.00036438,2]
[310208136,1704400306804,-500.0,0.00036438,2]
[310208137,1704400306817,-500.0,0.00036438,2]
[310208138,1704400306829,-1291.64,0.00036438,2]
[310208139,1704400306839,-1533.04,0.00036438,2]
[310208140,1704400306849,-654.95,0.00036438,2]
[310208141,1704400306861,-1046.38,0.00036438,2]
[310208142,1704400306871,-1168.15,0.00036438,2]
[310208143,1704400306882,-1279.36,0.00036438,2]
[310208144,1704400306892,-774.31,0.00036438,2]
[310208145,1704400306902,-1178.66,0.00036438,2]
[310208146,1704400306912,-2705.72,0.00036438,2]
[310208147,1704400306921,-540.01,0.00036438,2]
[310208148,1704400306931,-800.68,0.00036438,2]
[310208149,1704400306940,-1033.15,0.00036438,2]
[310208150,1704400306950,-683.02,0.00036438,2]
[310208151,1704400306960,-500.0,0.00036438,2]
[310208152,1704400306971,-664.5,0.00036438,2]
[310208153,1704400306981,-5429.5,0.00036438,2]
[310208154,1704400306990,-787.99,0.00036438,2]
[310208155,1704400307000,-500.0,0.00036438,2]
[310208156,1704400307009,-1185.9,0.00036438,2]
[310208157,1704400307019,-500.0,0.00036438,2]
[310208158,1704400307029,-502.99,0.00036438,2]
[310208159,1704400307038,-803.67,0.00036438,2]
[310208160,1704400307048,-703.08,0.00036438,2]
[310208161,1704400307058,-931.91,0.00036438,2]
[310208162,1704400307068,-540.46783233,0.00036438,2]
[310208163,1704400307077,-500.0,0.00036438,2]
[310208164,1704400307087,-3045.47,0.00036438,2]
[310208165,1704400307096,-500.0,0.00036438,2]
[310208166,1704400307105,-924.28,0.00036438,2]
[310208167,1704400307115,-612.45,0.00036438,2]
[310208168,1704400307124,-500.0,0.00036438,2]
[310208169,1704400307133,-1664.58,0.00036438,2]
[310208170,1704400307143,-1719.17,0.00036438,2]
[310208171,1704400307153,-500.0,0.00036438,2]
[310208172,1704400307162,-650.67,0.00036438,2]
[310208173,1704400307173,-837.7,0.00036438,2]
[310208174,1704400307183,-651.85,0.00036438,2]
[310208175,1704400307192,-1763.88,0.00036438,2]
[310208176,1704400307202,-500.0,0.00036438,2]
[310208177,1704400307213,-387.86,0.00036438,2]
[310208178,1704400307223,-5455.26,0.00036438,2]
[310208179,1704400307235,-595.32,0.00036438,2]
[310208180,1704400307246,-500.0,0.00036438,2]
[310208181,1704400307257,-864.85,0.00036438,2]
[310208182,1704400307268,-500.0,0.00036438,2]
[310208183,1704400307282,-500.0,0.00036438,2]
[310208184,1704400307293,-618.44,0.00036438,2]
[310208185,1704400307306,-1928.75,0.00036438,2]
[310208186,1704400307317,-500.0,0.00036438,2]
[310208187,1704400307327,-500.0,0.00036438,2]
[310208188,1704400307337,-575.7,0.00036438,2]
[310208189,1704400307348,-589.02,0.00036438,2]
[310208190,1704400307361,-2873.21,0.00036438,2]
[310208191,1704400307373,-500.0,0.00036438,2]
[310208192,1704400307384,-500.0,0.00036438,2]
[310208193,1704400307395,-501.82,0.00036438,2]
[310208194,1704400307408,-500.0,0.00036438,2]
[310208195,1704400307417,-500.0,0.00036438,2]
[310208196,1704400307427,-1565.07,0.00036438,2]
[310208197,1704400307436,-500.0,0.00036438,2]
[310208198,1704400307445,-1472.89,0.00036438,2]
[310208199,1704400307455,-6496.65,0.00036438,2]
[310208200,1704400307464,-902.0,0.00036438,2]
[310208201,1704400307475,-500.0,0.00036438,2]
[310208202,1704400307485,-864.86,0.00036438,2]
[310208203,1704400307495,-500.0,0.00036438,2]
[310208204,1704400307506,-500.0,0.00036438,2]
[310208205,1704400307517,-659.36,0.00036438,2]
[310208206,1704400307527,-539.42,0.00036438,2]
[310208207,1704400307537,-2834.51,0.00036438,2]
[310208208,1704400307548,-500.0,0.00036438,2]
[310208209,1704400307558,-535.67,0.00036438,2]
[310208210,1704400307568,-500.0,0.00036438,2]
[310208211,1704400307579,-772.31,0.00036438,2]
[310208212,1704400307588,-730.25,0.00036438,2]
[310208213,1704400307598,-500.0,0.00036438,2]
[310208214,1704400307608,-500.0,0.00036438,2]
[310208215,1704400307617,-1511.83,0.00036438,2]
[310208216,1704400307627,-597.99,0.00036438,2]
[310208217,1704400307637,-1373.46,0.00036438,2]
[310208218,1704400307647,-500.0,0.00036438,2]
[310208219,1704400307657,-500.0,0.00036438,2]
[310208220,1704400307668,-1411.58,0.00036438,2]
[310208221,1704400307678,-844.92,0.00036438,2]
[310208222,1704400307690,-1122.72,0.00036438,2]
[310208223,1704400307701,-500.0,0.00036438,2]
[310208224,1704400307711,-938.79,0.00036438,2]
[310208225,1704400307722,-700.27,0.00036438,2]
[310208226,1704400307732,-500.0,0.00036438,2]
[310208227,1704400307742,-2603.65,0.00036438,2]
[310208228,1704400307754,-500.0,0.00036438,2]
[310208229,1704400307765,-500.0,0.00036438,2]
[310208230,1704400307778,-690.56,0.00036438,2]
[310208231,1704400307791,-500.0,0.00036438,2]
[310208232,1704400307801,-500.0,0.00036438,2]
[310208233,1704400307811,-1114.57,0.00036438,2]
[310208234,1704400307821,-1863.03,0.00036438,2]
[310208235,1704400307830,-625.26,0.00036438,2]
[310208236,1704400307841,-1822.1,0.00036438,2]
[310208237,1704400307853,-524.64,0.00036438,2]
[310208238,1704400307864,-715.91,0.00036438,2]
[310208239,1704400307875,-1359.04,0.00036438,2]
[310208240,1704400307886,-220.71423699,0.00036452,14]
[310208241,1704400307895,-152.79793013,0.00036456,14]
[310208242,1704400307906,-2000.0,0.0003647,21]
[310208243,1704400307916,-166.27,0.00036493,2]
[310208244,1704400307927,-5000.0,0.000365,3]
[310208245,1704400307937,-1857.270551,0.000365,30]
[310208246,1704400307947,-1474.70996629,0.0003655,9]
[310208247,1704400307958,-150.0,0.00036554,2]
[310208248,1704400307967,-500.0,0.00036589,7]
[310208249,1704400307979,-500.0,0.00036589,7]
[310208250,1704400307989,-500.0,0.00036589,7]
[310208251,1704400307998,-150.0,0.00036597,2]
[310208252,1704400308010,-150.0,0.00036597,2]
[310208253,1704400308021,-1000.0,0.000366,3]
[310208254,1704400308032,-500.0,0.000366,4]
[310208255,1704400308042,-500.0,0.000366,2]
[310208256,1704400308052,-2662.78576104,0.000366,2]
[310208257,1704400308062,-1087.0,0.00036611,20]
[310208258,1704400308072,-464.0,0.00036611,20]
[310208259,1704400308082,-167.13,0.00036613,15]
[310208260,1704400308091,-325.61963289,0.00036639,14]
[310208261,1704400308101,-151.0,0.00036667,7]
[310208262,1704400308111,-151.0,0.00036667,7]
[310208263,1704400308120,-6528.34,0.000367,7]
[310208264,1704400308131,-761.346037,0.000367,12]
[310208265,1704400308145,-153.68,0.000367,3]
[310208266,1704400308155,-153.68,0.000367,3]
[310208267,1704400308165,-153.68,0.000367,3]
[310208268,1704400308174,-153.68,0.000367,3]
[310208269,1704400308184,-153.68,0.000367,3]
[310208270,1704400308194,-153.68,0.000367,3]
[310208271,1704400308205,-153.68,0.000367,3]
[310208272,1704400308215,-220.71423699,0.00036706,14]
[310208273,1704400308225,-500.0,0.00036712,2]
[310208274,1704400308236,-500.0,0.00036712,2]
[310208275,1704400308245,-278.2,0.00036712,2]
[310208276,1704400308255,-809.33,0.00036712,2]
[310208277,1704400308264,-500.0,0.00036712,2]
[310208278,1704400308274,-500.0,0.00036712,2]
[310208279,1704400308282,-500.0,0.00036712,2]
[310208280,1704400308291,-500.0,0.00036712,2]
[310208281,1704400308300,-570.2,0.00036712,2]
[310208282,1704400308309,-500.0,0.00036712,2]
[310208283,1704400308318,-500.0,0.00036712,2]
[310208284,1704400308327,-500.0,0.00036712,2]
[310208285,1704400308335,-500.0,0.00036712,2]
[310208286,1704400308344,-500.0,0.00036712,2]
[310208287,1704400308354,-511.41,0.00036712,2]
[310208288,1704400308365,-500.0,0.00036712,2]
[310208289,1704400308374,-500.0,0.00036712,2]
[310208290,1704400308384,-826.26,0.00036712,2]
[310208291,1704400308393,-500.0,0.00036712,2]
[310208292,1704400308406,-1785.82,0.00036712,2]
[310208293,1704400308416,-541.66,0.00036712,2]
[310208294,1704400308425,-702.0,0.00036712,2]
[310208295,1704400308434,-190.21,0.00036712,2]
[310208296,1704400308443,-713.92,0.00036712,2]
[310208297,1704400308452,-508.08,0.00036712,2]
[310208298,1704400308461,-500.0,0.00036712,2]